fUSD/lending_fUSD_20240331
["ID","MTS","AMOUNT","RATE_DAILY","PERIOD"]
[321141954,1711908666894,-557.44023725,0.00055616,120]
[321141955,1711908666903,-500.0,0.00055616,120]
[321141956,1711908666913,-500.0,0.00055616,120]
[321141957,1711908666922,-500.0,0.00055616,120]
[321141958,1711908666932,-500.0,0.00055616,120]
[321141959,1711908666942,-500.0,0.00055616,120]
[321141960,1711908666952,-529.82,0.00055616,120]
[321141961,1711908666962,-500.0,0.00055616,120]
[321141962,1711908666972,-500.0,0.00055616,120]
[321141963,1711908666981,-500.0,0.00055616,120]
[321141964,1711908666990,-691.41,0.00055616,120]
[321141965,1711908667000,-500.0,0.00055616,120]
[321141966,1711908667010,-500.0,0.00055616,120]
[321141967,1711908667020,-500.0,0.00055616,120]
[321141968,1711908667030,-500.0,0.00055616,120]
[321141969,1711908667040,-500.0,0.00055616,120]
[321141970,1711908667050,-500.0,0.00055616,120]
[321141971,1711908667059,-240.12461791,0.00055616,120]
[321141972,1711908667069,-500.0,0.00055616,120]
[321141973,1711908667079,-500.0,0.00055616,120]
[321141974,1711908667089,-500.0,0.00055616,120]
[321141975,1711908667099,-500.0,0.00055616,120]
[321141976,1711908667108,-500.0,0.00055616,120]
[321141977,1711908667118,-500.0,0.00055616,120]
[321141978,1711908667128,-500.0,0.00055616,120]
[321141979,1711908667139,-500.0,0.00055616,120]
[321141980,1711908667148,-500.0,0.00055616,120]
[321141981,1711908667158,-500.0,0.00055616,120]
[321141982,1711908667168,-252.88,0.00055616,120]
[321141983,1711908667178,-500.0,0.00055616,120]
[321141984,1711908667188,-500.0,0.00055616,120]
[321141985,1711908667197,-500.0,0.00055616,120]
[321141986,1711908667207,-500.0,0.00055616,120]
[321141987,1711908667217,-535.03,0.00055616,120]
[321141988,1711908667227,-500.0,0.00055616,120]
[321141989,1711908667236,-500.0,0.00055616,120]
[321141990,1711908667246,-500.0,0.00055616,120]
[321141991,1711908667256,-500.0,0.00055616,120]
[321141992,1711908667265,-834.12,0.00055616,120]
[321141993,1711908667274,-500.0,0.00055616,120]
[321141994,1711908667284,-500.0,0.00055616,120]
[321141995,1711908667294,-151.0,0.00055616,120]
[321141996,1711908667303,-500.0,0.00055616,120]
[321141997,1711908667312,-500.0,0.00055616,120]
[321141998,1711908667321,-500.0,0.00055616,120]
[321141999,1711908667331,-500.0,0.00055616,120]
[321142000,1711908667341,-435.16,0.00055616,120]
[321142001,1711908667350,-500.0,0.00055616,120]
[321142002,1711908667407,-597.15,0.00055616,120]
[321142003,1711908667416,-334.3579436,0.00055616,120]
[321142004,1711908667426,-500.0,0.00055616,120]
[321142005,1711908667435,-500.0,0.00055616,120]
[321142006,1711908667445,-500.0,0.00055616,120]
[321142007,1711908667455,-2161.52,0.00055616,120]
[321142008,1711908667465,-523.05,0.00055616,120]
[321142009,1711908667474,-500.0,0.00055616,120]
[321142010,1711908667483,-500.0,0.00055616,120]
[321142011,1711908667493,-500.0,0.00055616,120]
[321142012,1711908667503,-500.0,0.00055616,120]
[321142013,1711908667512,-500.0,0.00055616,120]
[321142014,1711908667521,-500.0,0.00055616,7]
[321142015,1711908667531,-427.5,0.00055616,120]
[321142016,1711908667540,-851.6,0.00055616,120]
[321142017,1711908667550,-500.0,0.00055616,120]
[321142018,1711908667559,-500.0,0.00055616,120]
[321142019,1711908667568,-500.0,0.00055616,120]
[321142020,1711908667578,-500.0,0.00055616,120]
[321142021,1711908667588,-500.0,0.00055616,120]
[321142022,1711908667598,-500.0,0.00055616,120]
[321142023,1711908667607,-500.0,0.00055616,120]
[321142024,1711908667617,-500.0,0.00055616,120]
[321142025,1711908667626,-519.95,0.00055616,120]
[321142026,1711908667635,-500.0,0.00055616,120]
[321142027,1711908667645,-500.0,0.00055616,120]
[321142028,1711908667655,-500.0,0.00055616,120]
[321142029,1711908667664,-500.0,0.00055616,120]
[321142030,1711908667674,-500.0,0.00055616,120]
[321142031,1711908667686,-1120.95,0.00055616,120]
[321142032,1711908667697,-500.0,0.00055616,120]
[321142033,1711908667707,-500.0,0.00055616,120]
[321142034,1711908667716,-500.0,0.00055616,120]
[321142035,1711908667727,-500.0,0.00055616,50]
[321142036,1711908667736,-500.0,0.00055616,120]
[321142037,1711908667745,-500.0,0.00055616,120]
[321142038,1711908667755,-639.25836668,0.00055616,120]
[321142039,1711908667764,-327.44204729,0.00055616,120]
[321142040,1711908667774,-13825.51,0.00055616,120]
[321142041,1711908667784,-500.0,0.00055616,120]
[321142042,1711908667793,-4835.83,0.00055616,120]
[321142043,1711908667802,-500.0,0.00055616,120]
[321142044,1711908667811,-500.0,0.00055616,120]
[321142045,1711908667820,-500.0,0.00055616,120]
[321142046,1711908667830,-500.0,0.00055616,120]
[321142047,1711908667839,-500.0,0.00055616,120]
[321142048,1711908667849,-645.15,0.00055616,120]
[321142049,1711908667859,-500.0,0.00055616,120]
[321142050,1711908667868,-500.0,0.00055616,120]
[321142051,1711908667878,-500.0,0.00055616,120]
[321142052,1711908667887,-500.0,0.00055616,120]
[321142053,1711908667896,-500.0,0.00055616,120]
[321142054,1711908667906,-500.0,0.00055616,120]
[321142055,1711908667915,-571.95242523,0.00055616,120]
[321142056,1711908667924,-500.0,0.00055616,120]
[321142057,1711908667933,-500.0,0.00055616,120]
[321142058,1711908667943,-1596.31,0.00055616,120]
[321142059,1711908667952,-500.0,0.00055616,120]
[321142060,1711908667961,-810.88,0.00055616,120]
[321142061,1711908667971,-10458.37,0.00055616,120]
[321142062,1711908667981,-500.0,0.00055616,120]
[321142063,1711908667990,-500.0,0.00055616,120]
[321142064,1711908668000,-1071.85,0.00055616,120]
[321142065,1711908668011,-520.56,0.00055616,120]
[321142066,1711908668020,-500.0,0.00055616,120]
[321142067,1711908668030,-500.0,0.00055616,120]
[321142068,1711908668039,-500.0,0.00055616,120]
[321142069,1711908668049,-500.0,0.00055616,120]
[321142070,1711908668058,-164.48596786,0.00055616,120]
[321142071,1711908668067,-500.0,0.00055616,120]
[321142072,1711908668077,-515.51,0.00055616,120]
[321142073,1711908668087,-500.0,0.00055616,120]
[321142074,1711908668097,-500.0,0.00055616,120]
[321142075,1711908668106,-500.0,0.00055616,120]
[321142076,1711908668115,-500.0,0.00055616,120]
[321142077,1711908668125,-500.0,0.00055616,120]
[321142078,1711908668134,-500.0,0.00055616,120]
[321142079,1711908668144,-462.0,0.00055616,120]
[321142080,1711908668153,-500.0,0.00055616,120]
[321142081,1711908668162,-500.0,0.00055616,120]
[321142082,1711908668171,-956.86,0.00055616,120]
[321142083,1711908668181,-500.0,0.00055616,120]
[321142084,1711908668190,-500.0,0.00055616,120]
[321142085,1711908668199,-500.0,0.00055616,120]
[321142086,1711908668209,-500.0,0.00055616,120]
[321142087,1711908668218,-224.5,0.00055616,120]
[321142088,1711908668227,-1008.24,0.00055616,120]
[321142089,1711908668237,-500.0,0.00055616,120]
[321142090,1711908668246,-514.26,0.00055616,120]
[321142091,1711908668256,-500.0,0.00055616,120]
[321142092,1711908668265,-500.0,0.00055616,120]
[321142093,1711908668275,-500.0,0.00055616,120]
[321142094,1711908668284,-500.0,0.00055616,120]
[321142095,1711908668294,-1713.58,0.00055616,21]
[321142096,1711908668303,-500.0,0.00055616,120]
[321142097,1711908668312,-500.0,0.00055616,120]
[321142098,1711908668321,-761.78,0.00055616,120]
[321142099,1711908668330,-647.03,0.00055616,120]
[321142100,1711908668340,-1017.54,0.00055616,120]
[321142101,1711908668349,-500.0,0.00055616,120]
[321142102,1711908668358,-1083.62,0.00055616,120]
[321142103,1711908668367,-500.0,0.00055616,120]
[321142104,1711908668376,-500.0,0.00055616,120]
[321142105,1711908668386,-500.0,0.00055616,120]
[321142106,1711908668395,-1151.56,0.00055616,120]
[321142107,1711908668404,-500.0,0.00055616,120]
[321142108,1711908668413,-705.26,0.00055616,120]
[321142109,1711908668423,-500.0,0.00055616,120]
[321142110,1711908668431,-1812.14,0.00055616,120]
[321142111,1711908668441,-500.0,0.00055616,120]
[321142112,1711908668450,-500.0,0.00055616,120]
[321142113,1711908668459,-500.0,0.00055616,120]
[321142114,1711908668468,-175.890155,0.00055616,120]
[321142115,1711908668478,-500.0,0.00055616,120]
[321142116,1711908668487,-151.0,0.00055616,120]
[321142117,1711908668496,-500.0,0.00055616,120]
[321142118,1711908668505,-3632.67,0.00055616,120]
[321142119,1711908668514,-777.77,0.00055616,120]
[321142120,1711908668523,-500.0,0.00055616,120]
[321142121,1711908668533,-2065.04,0.00055616,120]
[321142122,1711908668542,-500.0,0.00055616,120]
[321142123,1711908668550,-500.0,0.00055616,120]
[321142124,1711908668559,-500.0,0.00055616,120]
[321142125,1711908668568,-500.0,0.00055616,120]
[321142126,1711908668578,-500.0,0.00055616,120]
[321142127,1711908668587,-337.26,0.00055616,120]
[321142128,1711908668596,-1086.78,0.00055616,120]
[321142129,1711908668605,-500.0,0.00055616,120]
[321142130,1711908668615,-1708.94,0.00055616,120]
[321142131,1711908668624,-500.0,0.00055616,120]
[321142132,1711908668634,-1274.25,0.00055616,120]
[321142133,1711908668644,-10405.37,0.00055616,120]
[321142134,1711908668653,-500.0,0.00055616,120]
[321142135,1711908668664,-500.0,0.00055616,120]
[321142136,1711908668676,-500.0,0.00055616,120]
[321142137,1711908668689,-2816.51,0.00055616,120]
[321142138,1711908668699,-500.0,0.00055616,120]
[321142139,1711908668709,-500.0,0.00055616,120]
[321142140,1711908668719,-500.0,0.00055616,120]
[321142141,1711908668728,-500.0,0.00055616,120]
[321142142,1711908668737,-500.0,0.00055616,120]
[321142143,1711908668746,-500.0,0.00055616,120]
[321142144,1711908668755,-587.31,0.00055616,120]
[321142145,1711908668767,-574.2,0.00055616,120]
[321142146,1711908668777,-500.0,0.00055616,120]
[321142147,1711908668786,-500.0,0.00055616,120]
[321142148,1711908668796,-500.0,0.00055616,120]
[321142149,1711908668804,-2188.08,0.00055616,120]
[321142150,1711908668813,-500.0,0.00055616,120]
[321142151,1711908668822,-500.0,0.00055616,120]
[321142152,1711908668832,-500.0,0.00055616,120]
[321142153,1711908668841,-505.55,0.00055616,120]
[321142154,1711908668851,-500.0,0.00055616,120]
[321142155,1711908668860,-819.73,0.00055616,120]
[321142156,1711908668869,-500.0,0.00055616,120]
[321142157,1711908668878,-500.0,0.00055616,120]
[321142158,1711908668887,-500.0,0.00055616,120]
[321142159,1711908668897,-258.88,0.00055616,120]
[321142160,1711908668906,-500.0,0.00055616,120]
[321142161,1711908668915,-4649.04,0.00055616,120]
[321142162,1711908668925,-500.0,0.00055616,120]
[321142163,1711908668934,-500.0,0.00055616,120]
[321142164,1711908668942,-707.12,0.00055616,120]
[321142165,1711908668952,-500.0,0.00055616,120]
[321142166,1711908668960,-2267.81,0.00055616,120]
[321142167,1711908668970,-500.0,0.00055616,120]
[321142168,1711908668978,-500.0,0.00055616,120]
[321142169,1711908668987,-5133.4,0.00055616,120]
[321142170,1711908668997,-1480.3,0.00055616,120]
[321142171,1711908669007,-805.22,0.00055616,120]
[321142172,1711908669016,-500.0,0.00055616,120]
[321142173,1711908669025,-500.0,0.00055616,120]
[321142174,1711908669034,-1427.42,0.00055616,120]
[321142175,1711908669044,-2273.08,0.00055616,120]
[321142176,1711908669053,-500.0,0.00055616,120]
[321142177,1711908669062,-6661.02,0.00055616,120]
[321142178,1711908669072,-500.0,0.00055616,120]
[321142179,1711908669081,-4444.01,0.00055616,120]
[321142180,1711908669091,-642.39,0.00055616,120]
[321142181,1711908669100,-500.0,0.00055616,120]
[321142182,1711908669110,-500.0,0.00055616,120]
[321142183,1711908669119,-500.0,0.00055616,120]
[321142184,1711908669129,-500.0,0.00055616,120]
[321142185,1711908669138,-572.95,0.00055616,120]
[321142186,1711908669147,-500.0,0.00055616,120]
[321142187,1711908669156,-6431.04,0.00055616,120]
[321142188,1711908669165,-2363.15,0.00055616,120]
[321142189,1711908669175,-1611.27,0.00055616,120]
[321142190,1711908669184,-500.0,0.00055616,120]
[321142191,1711908669193,-899.44,0.00055616,120]
[321142192,1711908669203,-500.0,0.00055616,120]
[321142193,1711908669212,-524.87273579,0.00055616,120]
[321142194,1711908669221,-500.0,0.00055616,120]
[321142195,1711908669231,-401.18691685,0.00055616,120]
[321142196,1711908669240,-1651.19,0.00055616,120]
[321142197,1711908669249,-512.64,0.00055616,120]
[321142198,1711908669259,-500.0,0.00055616,120]
[321142199,1711908669269,-500.0,0.00055616,120]
[321142200,1711908669278,-500.0,0.00055616,120]
[321142201,1711908669287,-4862.95,0.00055616,120]
[321142202,1711908669297,-1275.53,0.00055616,120]
[321142203,1711908669306,-500.0,0.00055616,120]
[321142204,1711908669316,-1488.24,0.00055616,120]
[321142205,1711908669324,-500.0,0.00055616,120]
[321142206,1711908669333,-816.26,0.00055616,120]
[321142207,1711908669342,-500.0,0.00055616,120]
[321142208,1711908669352,-1110.2,0.00055616,120]
[321142209,1711908669361,-669.65,0.00055616,120]
[321142210,1711908669370,-500.0,0.00055616,120]
[321142211,1711908669379,-3231.72,0.00055616,120]
[321142212,1711908669387,-186.362632,0.00055616,120]
[321142213,1711908669396,-642.72,0.00055616,120]
[321142214,1711908669405,-186.362632,0.00055616,120]
[321142215,1711908669415,-575.9618602,0.00055616,120]
[321142216,1711908669424,-705.23,0.00055616,120]
[321142217,1711908669434,-713.19,0.00055616,120]
[321142218,1711908669442,-2389.97,0.00055616,120]
[321142219,1711908669452,-500.0,0.00055616,120]
[321142220,1711908669461,-500.0,0.00055616,120]
[321142221,1711908669470,-528.46,0.00055616,120]
[321142222,1711908669479,-648.84,0.00055616,120]
[321142223,1711908669487,-500.0,0.00055616,120]
[321142224,1711908669498,-500.0,0.00055616,120]
[321142225,1711908669506,-1994.62,0.00055616,120]
[321142226,1711908669516,-500.0,0.00055616,120]
[321142227,1711908669525,-2619.63,0.00055616,120]
[321142228,1711908669535,-500.0,0.00055616,120]
[321142229,1711908669545,-500.0,0.00055616,120]
[321142230,1711908669555,-500.0,0.00055616,120]
[321142231,1711908669564,-500.0,0.00055616,16]
[321142232,1711908669573,-500.0,0.00055616,120]
[321142233,1711908669582,-3992.88,0.00055616,120]
[321142234,1711908669592,-4661.97,0.00055616,120]
[321142235,1711908669602,-1467.45,0.00055616,120]
[321142236,1711908669611,-189.41,0.00055616,120]
[321142237,1711908669621,-376.39,0.00055616,120]
[321142238,1711908669631,-7813.73,0.00055616,120]
[321142239,1711908669641,-500.0,0.00055616,120]
[321142240,1711908669651,-2947.07,0.00055616,120]
[321142241,1711908669660,-595.08,0.00055616,120]
[321142242,1711908669669,-635.56,0.00055616,120]
[321142243,1711908669680,-500.0,0.00055616,120]
[321142244,1711908669691,-1656.13,0.00055616,120]
[321142245,1711908669701,-258.439021,0.00055616,120]
[321142246,1711908669710,-500.0,0.00055616,120]
[321142247,1711908669720,-500.0,0.00055616,120]
[321142248,1711908669730,-697.65,0.00055616,120]
[321142249,1711908669740,-500.0,0.00055616,120]
[321142250,1711908669749,-500.0,0.00055616,120]
[321142251,1711908669759,-709.24,0.00055616,120]
[321142252,1711908669770,-500.0,0.00055616,120]
[321142253,1711908669780,-500.0,0.00055616,120]
[321142254,1711908669789,-567.42,0.00055616,120]
[321142255,1711908669798,-500.0,0.00055616,120]
[321142256,1711908669807,-500.0,0.00055616,120]
[321142257,1711908669817,-542.88,0.00055616,120]
[321142258,1711908669827,-500.0,0.00055616,120]
[321142259,1711908669836,-363.20146042,0.00055616,120]
[321142260,1711908669846,-500.0,0.00055616,120]
[321142261,1711908669856,-500.0,0.00055616,120]
[321142262,1711908669865,-729.76,0.00055616,120]
[321142263,1711908669874,-2362.9,0.00055616,120]
[321142264,1711908669884,-500.0,0.00055616,120]
[321142265,1711908669893,-500.0,0.00055616,120]
[321142266,1711908669902,-500.0,0.00055616,120]
[321142267,1711908669912,-161.44793174,0.00055626,120]
[321142268,1711908669922,-172.4793877,0.000558,30]
[321142269,1711908669931,-500.0,0.0005589,120]
[321142270,1711908669941,-500.0,0.0005589,120]
[321142271,1711908669950,-500.0,0.0005589,120]
[321142272,1711908669960,-500.0,0.0005589,120]
[321142273,1711908669969,-173.16935573,0.0005589,120]
[321142274,1711908669979,-500.0,0.0005589,120]
[321142275,1711908669988,-583.58,0.0005589,120]
[321142276,1711908669998,-444.59184402,0.0005589,120]
[321142277,1711908670008,-500.0,0.0005589,120]
[321142278,1711908670017,-434.49,0.0005589,120]
[321142279,1711908670027,-500.0,0.0005589,120]
[321142280,1711908670037,-500.0,0.0005589,120]
[321142281,1711908670047,-555.83,0.0005589,120]
[321142282,1711908670057,-500.0,0.0005589,120]
[321142283,1711908670066,-500.0,0.0005589,120]
[321142284,1711908670076,-500.0,0.0005589,120]
[321142285,1711908670085,-345.25,0.0005589,120]
[321142286,1711908670094,-252.42,0.0005589,120]
[321142287,1711908670105,-500.0,0.0005589,120]
[321142288,1711908670115,-500.0,0.0005589,120]
[321142289,1711908670125,-500.0,0.0005589,120]
[321142290,1711908670135,-500.0,0.0005589,120]
[321142291,1711908670146,-500.0,0.0005589,120]
[321142292,1711908670156,-500.0,0.0005589,120]
[321142293,1711908670166,-505.97,0.0005589,120]
[321142294,1711908670176,-500.0,0.0005589,120]
[321142295,1711908670186,-500.0,0.0005589,120]
[321142296,1711908670196,-500.0,0.0005589,7]
[321142297,1711908670206,-224.47436154,0.0005589,120]
[321142298,1711908670216,-500.0,0.0005589,120]
[321142299,1711908670226,-500.0,0.0005589,2]
[321142300,1711908670235,-500.0,0.0005589,120]
[321142301,1711908670245,-500.0,0.0005589,120]
[321142302,1711908670254,-500.0,0.0005589,120]
[321142303,1711908670264,-500.0,0.0005589,120]
[321142304,1711908670273,-500.0,0.0005589,120]
[321142305,1711908670283,-500.0,0.0005589,120]
[321142306,1711908670293,-500.0,0.0005589,120]
[321142307,1711908670302,-639.65,0.0005589,120]
[321142308,1711908670312,-500.0,0.0005589,120]
[321142309,1711908670322,-471.49,0.0005589,120]
[321142310,1711908670331,-500.0,0.0005589,120]
[321142311,1711908670341,-500.0,0.0005589,120]
[321142312,1711908670350,-581.85,0.0005589,120]
[321142313,1711908670359,-500.0,0.0005589,120]
[321142314,1711908670369,-500.0,0.0005589,120]
[321142315,1711908670378,-500.0,0.0005589,120]
[321142316,1711908670387,-498.21,0.0005589,120]
[321142317,1711908670397,-291.15,0.0005589,120]
[321142318,1711908670407,-500.0,0.0005589,120]
[321142319,1711908670416,-500.0,0.0005589,120]
[321142320,1711908670427,-500.0,0.0005589,120]
[321142321,1711908670436,-500.0,0.0005589,120]
[321142322,1711908670446,-481.6,0.0005589,120]
[321142323,1711908670455,-500.0,0.0005589,120]
[321142324,1711908670464,-500.0,0.0005589,120]
[321142325,1711908670474,-235.65,0.0005589,120]
[321142326,1711908670482,-500.0,0.0005589,120]
[321142327,1711908670492,-500.0,0.0005589,120]
[321142328,1711908670501,-500.0,0.0005589,120]
[321142329,1711908670511,-500.0,0.0005589,120]
[321142330,1711908670520,-245.5211145,0.0005589,120]
[321142331,1711908670530,-500.0,0.0005589,120]
[321142332,1711908670539,-206.2,0.0005589,120]
[321142333,1711908670549,-500.0,0.0005589,120]
[321142334,1711908670558,-500.0,0.0005589,120]
[321142335,1711908670568,-500.0,0.0005589,120]
[321142336,1711908670577,-500.0,0.0005589,120]
[321142337,1711908670586,-500.0,0.0005589,120]
[321142338,1711908670595,-500.0,0.0005589,120]
[321142339,1711908670605,-500.0,0.0005589,120]
[321142340,1711908670615,-500.0,0.0005589,120]
[321142341,1711908670624,-500.0,0.0005589,120]
[321142342,1711908670633,-500.0,0.0005589,120]
[321142343,1711908670642,-500.0,0.0005589,120]
[321142344,1711908670652,-500.0,0.0005589,120]
[321142345,1711908670661,-500.0,0.0005589,120]
[321142346,1711908670670,-500.0,0.0005589,120]
[321142347,1711908670682,-500.0,0.0005589,120]
[321142348,1711908670695,-500.0,0.0005589,120]
[321142349,1711908670706,-500.0,0.0005589,120]
[321142350,1711908670715,-575.64,0.0005589,120]
[321142351,1711908670725,-587.68,0.0005589,120]
[321142352,1711908670736,-371.41,0.0005589,120]
[321142353,1711908670746,-500.0,0.0005589,120]
[321142354,1711908670756,-500.0,0.0005589,120]
[321142355,1711908670766,-345.2,0.0005589,120]
[321142356,1711908670776,-500.0,0.0005589,120]
[321142357,1711908670785,-500.0,0.0005589,120]
[321142358,1711908670795,-500.0,0.0005589,120]
[321142359,1711908670804,-500.0,0.0005589,120]
[321142360,1711908670814,-500.0,0.0005589,120]
[321142361,1711908670823,-500.0,0.0005589,120]
[321142362,1711908670833,-603.91,0.0005589,120]
[321142363,1711908670842,-500.0,0.0005589,120]
[321142364,1711908670852,-500.0,0.0005589,120]
[321142365,1711908670862,-500.0,0.0005589,120]
[321142366,1711908670871,-500.0,0.0005589,120]
[321142367,1711908670881,-500.0,0.0005589,120]
[321142368,1711908670891,-500.0,0.0005589,120]
[321142369,1711908670900,-500.0,0.0005589,120]
[321142370,1711908670910,-500.0,0.0005589,120]
[321142371,1711908670919,-500.0,0.0005589,120]
[321142372,1711908670930,-500.0,0.0005589,120]
[321142373,1711908670939,-500.0,0.0005589,120]
[321142374,1711908670949,-664.54,0.0005589,120]
[321142375,1711908670958,-500.0,0.0005589,120]
[321142376,1711908670968,-500.0,0.0005589,120]
[321142377,1711908670977,-500.0,0.0005589,120]
[321142378,1711908670987,-1004.03,0.0005589,120]
[321142379,1711908670997,-500.0,0.0005589,120]
[321142380,1711908671006,-500.0,0.0005589,120]
[321142381,1711908671016,-150.0,0.0005589,120]
[321142382,1711908671025,-500.0,0.0005589,120]
[321142383,1711908671035,-500.0,0.0005589,120]
[321142384,1711908671045,-500.0,0.0005589,120]
[321142385,1711908671055,-500.0,0.0005589,120]
[321142386,1711908671065,-804.28,0.0005589,120]
[321142387,1711908671074,-500.0,0.0005589,120]
[321142388,1711908671084,-500.0,0.0005589,120]
[321142389,1711908671093,-500.0,0.0005589,120]
[321142390,1711908671103,-462.04651782,0.0005589,120]
[321142391,1711908671112,-500.0,0.0005589,120]
[321142392,1711908671122,-332.14,0.0005589,120]
[321142393,1711908671132,-914.67,0.0005589,120]
[321142394,1711908671141,-500.0,0.0005589,120]
[321142395,1711908671151,-500.0,0.0005589,120]
[321142396,1711908671161,-510.44,0.0005589,120]
[321142397,1711908671171,-500.0,0.0005589,120]
[321142398,1711908671181,-231.92,0.0005589,120]
[321142399,1711908671190,-500.0,0.0005589,120]
[321142400,1711908671200,-1062.57,0.0005589,120]
[321142401,1711908671210,-500.0,0.0005589,120]
[321142402,1711908671220,-500.0,0.0005589,120]
[321142403,1711908671230,-500.0,0.0005589,120]
[321142404,1711908671239,-500.0,0.0005589,120]
[321142405,1711908671249,-500.0,0.0005589,120]
[321142406,1711908671259,-500.0,0.0005589,120]
[321142407,1711908671268,-500.0,0.0005589,120]
[321142408,1711908671278,-500.0,0.0005589,120]
[321142409,1711908671287,-500.0,0.0005589,120]
[321142410,1711908671297,-500.0,0.0005589,2]
[321142411,1711908671307,-500.0,0.0005589,120]
[321142412,1711908671317,-500.0,0.0005589,120]
[321142413,1711908671327,-500.0,0.0005589,120]
[321142414,1711908671337,-980.98,0.0005589,120]
[321142415,1711908671346,-500.0,0.0005589,120]
[321142416,1711908671356,-551.86266391,0.0005589,120]
[321142417,1711908671365,-500.0,0.0005589,120]
[321142418,1711908671375,-500.0,0.0005589,120]
[321142419,1711908671384,-500.0,0.0005589,120]
[321142420,1711908671394,-500.0,0.0005589,120]
[321142421,1711908671403,-500.0,0.0005589,120]
[321142422,1711908671413,-500.0,0.0005589,120]
[321142423,1711908671423,-500.0,0.0005589,120]
[321142424,1711908671433,-601.42,0.0005589,120]
[321142425,1711908671442,-500.0,0.0005589,120]
[321142426,1711908671451,-500.0,0.0005589,120]
[321142427,1711908671461,-500.0,0.0005589,120]
[321142428,1711908671471,-526.31544577,0.0005589,120]
[321142429,1711908671481,-529.82,0.0005589,120]
[321142430,1711908671490,-500.0,0.0005589,120]
[321142431,1711908671500,-500.0,0.0005589,120]
[321142432,1711908671509,-500.0,0.0005589,120]
[321142433,1711908671519,-691.41,0.0005589,120]
[321142434,1711908671529,-524.99,0.0005589,120]
[321142435,1711908671538,-500.0,0.0005589,120]
[321142436,1711908671549,-500.0,0.0005589,120]
[321142437,1711908671559,-500.0,0.0005589,120]
[321142438,1711908671569,-500.0,0.0005589,120]
[321142439,1711908671579,-500.0,0.0005589,120]
[321142440,1711908671589,-500.0,0.0005589,120]
[321142441,1711908671598,-500.0,0.0005589,120]
[321142442,1711908671609,-500.0,0.0005589,120]
[321142443,1711908671619,-500.0,0.0005589,120]
[321142444,1711908671629,-500.0,0.0005589,120]
[321142445,1711908671638,-500.0,0.0005589,120]
[321142446,1711908671648,-500.0,0.0005589,120]
[321142447,1711908671659,-500.0,0.0005589,120]
[321142448,1711908671669,-500.0,0.0005589,120]
[321142449,1711908671680,-500.0,0.0005589,120]
[321142450,1711908671693,-500.0,0.0005589,120]
[321142451,1711908671702,-500.0,0.0005589,120]
[321142452,1711908671712,-535.03,0.0005589,120]
[321142453,1711908671722,-500.0,0.0005589,120]